bitfinex-derivatives/quotes_BNBF0:USTF0_20251219
["timestamp","ask_amount","ask_price","bid_price","bid_amount"]
[1766173295758,1.74360417,857.72,855.91,0.7338163]
[1766173295965,1.74360417,857.72,855.92,0.7338163]
[1766173296258,1.74360417,857.64,855.65,0.85705536]
[1766173296556,1.74360417,857.65,855.66,0.73355773]
[1766173296754,1.74360417,857.65,855.67,0.73355773]
[1766173296959,1.74360417,857.65,855.68,0.73355773]
[1766173297155,1.74360417,857.64,855.69,0.73355773]
[1766173297356,1.74360417,857.65,855.7,0.73355773]
[1766173297656,1.74360417,857.65,855.71,0.73355773]
[1766173297854,1.74360417,857.65,855.72,0.73355773]
[1766173298061,1.74360417,857.65,855.73,0.73355773]
[1766173298260,1.74360417,857.64,855.74,0.73355773]
[1766173298465,1.74360417,857.65,855.75,0.73355773]
[1766173298761,1.74360417,857.65,855.76,0.73355773]
[1766173298960,1.74360417,857.65,855.77,0.73355773]
[1766173299260,1.74360417,857.62,855.78,0.73355773]
[1766173299458,1.74360417,857.63,855.79,0.73355773]
[1766173299663,1.74360417,857.63,855.8,0.73355773]
[1766173299857,1.74360417,857.63,855.81,0.73355773]
[1766173300062,1.74360417,857.63,855.82,0.73355773]
[1766173300261,1.74360417,857.62,855.83,0.73355773]
[1766173300463,1.74360417,857.63,855.84,0.73355773]
[1766173300672,1.74360417,857.63,855.85,0.73355773]
[1766173300962,1.74360417,857.63,855.86,0.73355773]
[1766173301263,1.74360417,857.62,855.87,0.73355773]
[1766173301462,1.74360417,857.62,855.88,0.73355773]
[1766173301764,1.74360417,857.62,855.89,0.73355773]
[1766173302062,1.74360417,857.62,855.9,0.73355773]
[1766173302263,1.74360417,857.62,855.63,0.85705536]
[1766173302558,1.74360417,857.62,855.64,0.73361706]
[1766173302762,1.74360417,857.62,855.65,0.73361706]
[1766173303058,1.74360417,857.62,855.66,0.73361706]
[1766173303259,1.74360417,857.62,855.67,0.73361706]
[1766173303559,1.74360417,857.62,855.68,0.73361706]
[1766173303762,1.74360417,857.62,855.69,0.73361706]
[1766173303962,1.74360417,857.62,855.7,0.73361706]
[1766173304162,1.74360417,857.62,855.71,0.73361706]
[1766173304362,1.74360417,857.62,855.72,0.73361706]
[1766173304664,1.74360417,857.8,855.8,0.85705536]
[1766173304860,1.74360417,857.95,855.96,0.85705536]
[1766173305064,1.74360417,857.96,855.97,0.73361706]
[1766173305364,1.74360417,857.9,855.98,0.73361706]
[1766173305565,1.74360417,857.89,855.99,0.73361706]
[1766173305761,1.74360417,857.85,856.0,0.73361706]
[1766173306065,1.74360417,857.85,856.01,0.73361706]
[1766173306265,1.74360417,857.85,856.02,0.73361706]
[1766173306564,1.74360417,857.85,856.03,0.73361706]
[1766173306761,1.74360417,857.85,856.04,0.73361706]
[1766173306965,1.74360417,857.85,856.05,0.73361706]
[1766173307161,1.74360417,857.85,856.06,0.73361706]
[1766173307363,1.74360417,857.85,856.07,0.73361706]
[1766173307661,1.74360417,857.85,856.08,0.73361706]
[1766173307865,1.74360417,857.85,856.09,0.73361706]
[1766173308065,1.74360417,857.85,856.1,0.73361706]
[1766173308265,1.74360417,857.85,856.11,0.73361706]
[1766173308561,1.74360417,857.86,856.12,0.73361706]
[1766173308761,1.74360417,857.86,855.85,0.85705536]
[1766173308961,1.74360417,857.86,855.86,0.73300232]
[1766173309163,1.74360417,857.8,855.87,0.73300232]
[1766173309361,1.74360417,857.8,855.88,0.73300232]
[1766173309565,1.74360417,857.8,855.89,0.73300232]
[1766173309764,1.74360417,857.8,855.9,0.73300232]
[1766173310066,1.74360417,857.8,855.91,0.73300232]
[1766173310264,1.74360417,857.8,855.92,0.73300232]
[1766173310564,1.74360417,857.8,855.93,0.73300232]
[1766173310867,1.74360417,857.8,855.94,0.73300232]
[1766173311070,1.74360417,857.8,855.95,0.73300232]
[1766173311367,1.74360417,857.79,855.96,0.73300232]
[1766173311564,1.74360417,857.79,855.97,0.73300232]
[1766173311768,1.74360417,857.79,855.98,0.73300232]
[1766173311962,1.74360417,857.79,855.99,0.73300232]
[1766173312167,2.90738808,858.43,856.0,0.73300232]
[1766173312365,2.90738808,858.43,856.01,0.73300232]
[1766173312563,2.90738808,858.4,856.02,0.73300232]
[1766173312867,2.90738808,858.4,856.03,0.73300232]
[1766173313068,2.90738808,858.4,856.04,0.73300232]
[1766173313268,2.90738808,858.38,856.05,0.73300232]
[1766173313465,2.90738808,858.38,855.76,0.85705536]
[1766173313670,2.90738808,858.36,855.77,0.74068058]
[1766173313865,2.90738808,858.36,855.78,0.74068058]
[1766173314068,2.90738808,858.36,855.79,0.74068058]
[1766173314268,2.90738808,858.36,855.8,0.74068058]
[1766173314465,2.90738808,858.36,855.81,0.74068058]
[1766173314667,2.90738808,858.36,855.82,0.74068058]
[1766173314964,2.90738808,858.36,855.83,0.74068058]
[1766173315268,2.90738808,858.35,855.84,0.74068058]
[1766173315469,2.90738808,858.35,855.85,0.74068058]
[1766173315666,2.90738808,858.35,855.86,0.74068058]
[1766173315863,2.90738808,858.25,855.87,0.74068058]
[1766173316067,2.90738808,858.25,855.88,0.74068058]
[1766173316270,2.90738808,858.25,855.89,0.74068058]
[1766173316465,2.90738808,858.25,855.9,0.74068058]
[1766173316764,2.90738808,858.24,855.91,0.74068058]
[1766173316965,2.90738808,858.24,855.92,0.74068058]
[1766173317165,2.90738808,858.24,855.93,0.74068058]
[1766173317370,2.90738808,858.24,855.94,0.74068058]
[1766173317665,2.90738808,858.24,855.95,0.74068058]
[1766173317864,2.90738808,858.23,855.67,0.85705536]
[1766173318065,2.90738808,858.23,855.68,0.74122683]
[1766173318265,2.90738808,858.23,855.69,0.74122683]
[1766173318464,2.90738808,858.2,855.7,0.74122683]
[1766173318668,2.90738808,858.2,855.71,0.74122683]
[1766173318869,2.90738808,858.2,855.72,0.74122683]
[1766173319068,2.90738808,858.2,855.73,0.74122683]
[1766173319271,2.90738808,858.2,855.74,1.59828219]
[1766173319473,2.90738808,858.23,855.75,1.59828219]
[1766173319672,2.90738808,858.23,855.76,0.74122683]
[1766173319872,2.90738808,858.23,855.77,0.74122683]
[1766173320074,2.90738808,858.23,855.78,0.74122683]
[1766173320272,2.90738808,858.23,855.79,0.74122683]
[1766173320470,2.90738808,858.23,855.8,0.74122683]
[1766173320771,2.90738808,858.23,855.81,0.74122683]
[1766173320970,2.90738808,858.23,855.82,0.74122683]
[1766173321169,2.90738808,858.23,855.83,0.74122683]
[1766173321373,2.90738808,858.23,855.84,0.74122683]
[1766173321574,2.90738808,858.21,855.85,0.74122683]
[1766173321772,2.90738808,858.21,855.86,0.74122683]
[1766173321970,2.90738808,858.21,855.87,0.74122683]
[1766173322271,2.90738808,858.21,855.88,0.74122683]
[1766173322473,2.90738808,858.15,855.89,0.74122683]
[1766173322674,2.90738808,858.15,855.9,0.74122683]
[1766173322871,2.90738808,858.15,855.91,0.74122683]
[1766173323073,2.90738808,858.15,855.92,0.74122683]
[1766173323272,2.90738808,858.15,855.93,0.74122683]
[1766173323474,2.90738808,858.15,855.94,0.74122683]
[1766173323673,2.90738808,858.13,855.95,0.74122683]
[1766173323877,2.90738808,858.13,855.96,0.74122683]
[1766173324074,2.90738808,858.13,855.97,0.74122683]
[1766173324272,2.90738808,858.13,855.98,0.74122683]
[1766173324473,2.90738808,858.13,855.99,0.74122683]
[1766173324675,2.90738808,858.12,856.0,0.74122683]
[1766173324977,2.90738808,858.12,855.73,0.85705536]
[1766173325277,2.90738808,858.12,855.74,1.5994867]
[1766173325472,2.90738808,858.12,855.75,0.74243134]
[1766173325674,2.90738808,858.11,855.76,0.74243134]
[1766173325877,2.90738808,858.11,855.77,0.74243134]
[1766173326078,2.90738808,858.11,855.78,0.74243134]
[1766173326278,2.90738808,858.11,855.79,0.74243134]
[1766173326476,2.90738808,858.11,855.8,0.74243134]
[1766173326675,2.90738808,858.11,855.81,0.74243134]
[1766173326983,2.90738808,858.11,855.82,0.74243134]
[1766173327275,2.90738808,858.11,855.83,0.74243134]
[1766173327477,2.90738808,858.11,855.84,0.74243134]
[1766173327677,2.90738808,858.11,855.85,0.74243134]
[1766173327879,2.90738808,858.11,855.86,0.74243134]
[1766173328076,2.90738808,858.11,855.87,0.74243134]
[1766173328376,2.90738808,858.11,855.88,0.74243134]
[1766173328575,2.90738808,858.11,855.89,0.74243134]
[1766173328780,2.90738808,858.1,855.9,0.74243134]
[1766173328980,2.90738808,858.1,855.91,0.74243134]
[1766173329281,2.90738808,858.1,855.74,0.85705536]
[1766173329282,2.90738808,858.05,855.92,0.74243134]
[1766173329576,2.90738808,858.05,855.93,0.74243134]
[1766173329778,2.90738808,858.05,855.94,0.74243134]
[1766173329973,2.90738808,858.05,855.95,0.74243134]
[1766173330178,2.90738808,858.05,855.96,0.74243134]
[1766173330379,2.90738808,858.05,855.97,0.74243134]
[1766173330675,2.90738808,858.05,855.7,0.85705536]
[1766173330876,2.90738808,858.05,855.71,0.7425853]
[1766173331080,2.90738808,858.05,855.72,0.7425853]
[1766173331376,2.90738808,858.05,855.73,0.7425853]
[1766173331580,2.90738808,858.18,855.84,0.85705536]
[1766173331780,2.90738808,858.18,855.85,0.7425853]
[1766173331980,2.90738808,858.18,855.86,0.7425853]
[1766173332178,2.90738808,858.18,855.88,0.85705536]
[1766173332480,2.90738808,858.22,855.89,0.7425853]
[1766173332781,2.90738808,858.22,855.9,0.7425853]
[1766173332980,2.90738808,858.22,855.91,0.7425853]
[1766173333277,2.90738808,858.22,855.92,0.7425853]
[1766173333476,2.90738808,858.22,855.93,0.7425853]
[1766173333677,2.90738808,858.21,855.94,0.7425853]
[1766173333877,2.90738808,858.21,855.95,0.7425853]
[1766173334081,2.90738808,858.21,855.96,0.7425853]
[1766173334275,2.90738808,858.21,855.97,0.7425853]
[1766173334481,2.90738808,858.31,855.98,1.59964066]
[1766173334780,2.90738808,858.31,855.99,0.7425853]
[1766173334980,2.90738808,858.31,856.0,0.7425853]
[1766173335178,2.90738808,858.3,856.01,0.7425853]
[1766173335381,2.90738808,858.3,856.02,0.7425853]
[1766173335680,2.90738808,858.3,856.03,0.7425853]
[1766173335882,2.90738808,858.3,856.04,0.7425853]
[1766173336079,2.90738808,858.3,856.05,0.7425853]
[1766173336379,2.90738808,858.3,856.06,0.7425853]
[1766173336578,2.90738808,858.29,856.07,0.7425853]
[1766173336779,2.90738808,858.29,856.08,0.7425853]
[1766173336982,2.90738808,858.29,856.09,0.7425853]
[1766173337184,2.90738808,858.29,856.1,0.7425853]
[1766173337486,2.90738808,858.29,856.11,0.7425853]
[1766173337781,2.90738808,858.29,856.12,0.7425853]
[1766173337985,2.90738808,858.29,856.13,0.7425853]
[1766173338283,2.90738808,858.28,856.14,0.7425853]
[1766173338481,2.90738808,858.28,856.15,0.7425853]
[1766173338684,2.90738808,858.28,856.16,0.7425853]
[1766173338886,2.90738808,858.28,856.17,0.7425853]
[1766173339185,5.8284939,859.08,855.58,9.90085527]
[1766173339186,2.90738808,858.27,856.18,0.7425853]
[1766173339487,2.90738808,858.27,856.19,0.7425853]
[1766173339682,2.90738808,858.27,856.2,0.7425853]
[1766173339880,2.90738808,858.27,856.21,0.7425853]
[1766173340183,2.90738808,858.26,856.22,0.7425853]
[1766173340385,2.90738808,858.26,856.23,0.7425853]
[1766173340583,2.90738808,858.26,856.24,0.7425853]
[1766173340784,2.90738808,858.26,856.25,0.7425853]
[1766173340987,2.90738808,858.26,856.26,0.7425853]
[1766173341287,2.90738808,858.26,855.85,1.14679664]
[1766173341288,2.90738808,858.25,856.27,0.7425853]
[1766173341481,2.90738808,858.25,856.28,0.7425853]
[1766173341686,2.90738808,858.25,856.29,0.7425853]
[1766173341885,2.90738808,858.25,856.01,0.85705536]
[1766173342086,2.90738808,858.25,856.02,0.74297226]
[1766173342285,2.90738808,858.19,856.03,0.74297226]
[1766173342486,2.90738808,858.19,856.04,0.74297226]
[1766173342688,2.90738808,858.19,856.05,0.74297226]
[1766173342885,2.90738808,858.19,856.06,0.74297226]
[1766173343186,2.90738808,858.19,856.07,0.74297226]
[1766173343389,2.90738808,858.18,856.08,0.74297226]
[1766173343589,2.90738808,858.18,856.09,0.74297226]
[1766173343787,2.90738808,858.18,856.1,0.74297226]
[1766173343987,2.90738808,858.18,856.11,0.74297226]
[1766173344193,2.90738808,858.18,856.12,0.74297226]
[1766173344491,2.90738808,858.16,856.13,0.74297226]
[1766173344690,2.90738808,858.16,856.14,0.74297226]
[1766173344890,2.90738808,858.16,856.15,0.74297226]
[1766173345089,2.90738808,858.16,856.16,0.74297226]
[1766173345292,2.90738808,858.16,856.17,0.74297226]
[1766173345489,2.90738808,858.15,856.18,0.74297226]
[1766173345688,2.90738808,858.15,856.19,0.74297226]
[1766173345993,2.90738808,858.15,856.2,0.74297226]
[1766173346189,2.90738808,858.15,856.21,0.74297226]
[1766173346388,2.90738808,858.15,856.22,0.74297226]
[1766173346589,2.90738808,858.13,856.23,0.74297226]
[1766173346793,2.90738808,858.13,856.24,0.74297226]
[1766173346990,2.90738808,858.13,856.25,0.74297226]
[1766173347194,2.90738808,858.13,856.26,0.74297226]
[1766173347395,2.90738808,858.13,856.27,0.74297226]
[1766173347692,4.07994573,858.42,856.28,0.74297226]
[1766173347693,2.90738808,858.11,856.28,0.74297226]
[1766173347890,2.90738808,858.11,856.29,0.74297226]
[1766173348094,2.90738808,858.09,856.3,0.74297226]
[1766173348295,2.90738808,858.09,856.31,0.74297226]
[1766173348490,2.90738808,858.09,856.04,0.85705536]
[1766173348694,2.90738808,858.07,856.05,0.74492465]
[1766173348895,2.90738808,858.07,856.06,0.74492465]
[1766173349191,2.90738808,858.01,856.07,0.74492465]
[1766173349398,2.90738808,858.01,856.08,0.74492465]
[1766173349591,2.90738808,857.86,856.09,0.74492465]
[1766173349892,2.90738808,857.86,856.1,0.74492465]
[1766173350092,2.90738808,857.86,856.11,0.74492465]
[1766173350291,2.90738808,857.86,856.12,0.74492465]
[1766173350492,2.90738808,857.86,855.85,0.85705536]
[1766173350797,2.90738808,857.85,855.86,0.74472362]
[1766173350997,2.90738808,857.85,855.87,0.74472362]
[1766173351197,2.90738808,857.78,855.88,0.74472362]
[1766173351397,2.90738808,857.78,855.89,0.74472362]
[1766173351593,2.90738808,857.78,855.9,0.74472362]
[1766173351897,2.90738808,857.77,855.91,0.74472362]
[1766173352096,2.90738808,857.77,855.92,0.74472362]
[1766173352292,2.90738808,857.77,855.93,0.74472362]
[1766173352495,2.90738808,857.77,855.94,0.74472362]
[1766173352796,2.90738808,857.77,855.95,0.74472362]
[1766173352996,2.90738808,857.77,855.96,0.74472362]
[1766173353197,2.90738808,857.77,855.97,0.74472362]
[1766173353397,2.90738808,857.77,855.98,0.74472362]
[1766173353694,2.90738808,857.77,855.77,0.85705536]
[1766173353695,2.90738808,857.77,855.99,0.74472362]
[1766173353895,2.90738808,857.77,856.0,0.74472362]
[1766173354096,2.90738808,857.77,856.01,0.74472362]
[1766173354402,2.90738808,857.78,856.02,0.74472362]
[1766173354599,2.90738808,857.78,856.03,0.74472362]
[1766173354895,2.90738808,857.78,856.04,0.74472362]
[1766173355199,2.90738808,857.78,855.77,0.85705536]
[1766173355397,2.90738808,857.78,855.78,0.7448177]
[1766173355595,2.90738808,857.78,855.79,0.7448177]
[1766173355800,2.90738808,857.78,855.8,0.7448177]
[1766173355997,2.90738808,857.78,855.81,0.7448177]
[1766173356199,2.90738808,857.78,855.82,0.7448177]
[1766173356496,2.90738808,857.78,855.83,0.7448177]
[1766173356800,2.90738808,857.78,855.84,0.7448177]
[1766173356998,2.90738808,857.78,855.85,0.7448177]
[1766173357202,2.90738808,857.78,855.86,0.7448177]
[1766173357402,2.90738808,857.78,855.87,0.7448177]
[1766173357702,2.90738808,857.78,855.88,0.7448177]
[1766173357998,2.90738808,857.78,855.89,0.7448177]
[1766173358297,2.90738808,857.78,855.9,0.7448177]
[1766173358602,2.90738808,858.57,856.54,0.85705536]
[1766173358901,2.90738808,858.57,856.58,0.85705536]
[1766173359098,2.90738808,858.61,856.59,0.7448177]
[1766173359301,2.90738808,858.61,856.68,0.85705536]
[1766173359506,2.90738808,858.61,856.69,0.7448177]
[1766173359801,0.20293557,858.13,856.7,0.7448177]
[1766173360006,0.20293557,858.13,856.71,0.7448177]
[1766173360205,0.20293557,858.13,856.72,0.7448177]
[1766173360402,0.20293557,858.13,856.73,0.7448177]
[1766173360603,0.20293557,858.13,856.74,0.7448177]
[1766173360802,0.20293557,858.13,856.75,0.7448177]
[1766173361005,0.20293557,858.13,856.76,0.7448177]
[1766173361205,0.20293557,858.13,856.77,0.7448177]
[1766173361404,0.20293557,858.13,856.78,0.7448177]
[1766173361606,0.20293557,858.13,856.79,0.7448177]
[1766173361808,0.20293557,858.13,856.8,0.7448177]
[1766173362105,0.20293557,858.13,856.81,0.7448177]
[1766173362304,0.20293557,858.13,855.92,0.01049938]
[1766173362305,0.20293557,858.13,856.82,0.7448177]
[1766173362502,0.20293557,858.13,856.83,0.7448177]
[1766173362705,0.20293557,858.13,856.84,0.7448177]
[1766173362901,0.20293557,858.13,856.85,0.7448177]
[1766173363105,0.20293557,858.13,856.86,0.7448177]
[1766173363306,0.20293557,858.13,856.56,0.85705536]
[1766173363505,0.20293557,858.13,856.57,0.739933]
[1766173363705,0.20293557,858.13,856.58,0.739933]
[1766173364001,0.20293557,858.13,856.59,0.739933]
[1766173364205,0.20293557,858.13,856.6,0.739933]
[1766173364401,0.20293557,858.13,856.61,0.739933]
[1766173364604,0.20293557,858.13,856.62,0.739933]
[1766173364907,0.20293557,858.13,856.63,0.739933]
[1766173365101,0.20293557,858.13,856.64,0.739933]
[1766173365302,0.20293557,858.13,856.65,0.739933]
[1766173365504,0.20293557,858.13,856.66,0.739933]
[1766173365704,0.20293557,858.13,856.67,0.739933]
[1766173365903,0.20293557,858.13,856.68,0.739933]
[1766173366104,0.20293557,858.13,856.69,0.739933]
[1766173366306,0.20293557,858.13,856.7,0.739933]
[1766173366502,0.20293557,858.13,856.71,0.739933]
[1766173366707,0.20293557,858.13,856.72,0.739933]
[1766173366906,0.20293557,858.13,856.73,0.739933]
[1766173367110,0.20293557,858.13,856.74,0.739933]
[1766173367310,0.20293557,858.13,856.75,0.739933]
[1766173367507,0.20293557,858.13,856.76,0.739933]
[1766173367711,0.20293557,858.13,856.77,0.739933]
[1766173367908,0.20293557,858.13,856.78,0.739933]
[1766173368112,0.20293557,858.13,856.79,0.739933]
[1766173368316,0.20293557,858.13,856.51,0.85705536]
[1766173368515,0.20293557,858.13,856.52,0.73833082]
[1766173368711,0.20293557,858.13,856.53,0.73833082]
[1766173368915,0.20293557,858.13,856.54,0.73833082]
[1766173369215,0.20293557,858.13,856.55,0.73833082]
[1766173369415,0.20293557,858.13,856.56,0.73833082]
[1766173369716,0.20293557,858.13,856.57,0.73833082]
[1766173369912,0.20293557,858.13,856.58,0.73833082]
[1766173370111,0.20293557,858.13,856.59,0.73833082]
[1766173370412,0.20293557,858.13,856.6,0.73833082]
[1766173370615,0.20293557,858.13,856.61,0.73833082]
[1766173370816,0.20293557,858.13,856.62,0.73833082]
[1766173371017,0.20293557,858.13,856.63,0.73833082]
[1766173371316,0.20293557,858.13,856.64,0.73833082]
[1766173371516,0.20293557,858.13,856.65,0.73833082]
[1766173371714,0.20293557,858.13,856.66,0.73833082]
[1766173371917,0.20293557,858.13,856.67,0.73833082]
[1766173372114,0.20293557,858.13,856.68,0.73833082]
[1766173372314,0.20293557,858.13,856.69,0.73833082]
[1766173372514,0.20293557,858.13,856.37,0.85705536]
[1766173372714,0.20293557,858.13,855.75,0.01460503]
[1766173372715,0.20293557,858.13,856.38,0.73746539]
[1766173372914,0.20293557,858.13,856.39,0.73746539]
[1766173373119,0.20293557,858.13,856.4,0.73746539]
[1766173373418,0.20293557,858.13,856.41,0.73746539]
[1766173373612,0.20293557,858.13,856.42,0.73746539]
[1766173373816,0.20293557,858.13,856.43,0.73746539]
[1766173374113,0.20293557,858.13,856.44,0.73746539]
[1766173374314,0.20293557,858.13,856.45,0.73746539]
[1766173374517,0.20293557,858.13,856.46,0.73746539]
[1766173374818,0.20293557,858.13,856.47,0.73746539]
[1766173375018,0.20293557,858.13,856.48,0.73746539]
[1766173375215,0.20293557,858.13,856.49,0.73746539]
[1766173375421,0.20293557,858.13,856.5,0.73746539]
[1766173375613,0.20293557,858.13,856.51,0.73746539]
[1766173375816,0.20293557,858.13,856.52,0.73746539]
[1766173376019,0.20293557,858.13,856.53,0.73746539]
[1766173376320,0.20293557,858.13,856.54,0.73746539]
[1766173376616,0.20293557,858.13,856.55,0.73746539]
[1766173376819,0.20293557,858.13,856.56,0.73746539]
[1766173377019,0.20293557,858.13,856.57,0.73746539]
[1766173377217,0.20293557,858.13,856.58,0.73746539]
[1766173377417,0.20293557,858.13,856.59,0.73746539]
[1766173377621,0.20293557,858.13,856.6,0.73746539]
[1766173377820,0.20293557,858.13,856.61,0.73746539]
[1766173378018,0.20293557,858.13,856.62,0.73746539]
[1766173378220,0.20293557,858.13,856.63,0.73746539]
[1766173378418,0.20293557,858.13,856.64,0.73746539]
[1766173378617,0.20293557,858.13,856.65,0.73746539]
[1766173378820,0.20293557,858.13,856.66,0.73746539]
[1766173379116,0.20293557,858.13,856.67,0.73746539]
[1766173379319,0.20293557,858.13,856.68,0.73746539]
[1766173379625,0.20293557,858.13,856.69,0.73746539]
[1766173379821,0.20293557,858.13,856.7,0.73746539]
[1766173380121,0.20293557,858.13,856.71,0.73746539]
[1766173380321,0.20293557,858.13,856.72,0.73746539]
[1766173380517,0.20293557,858.13,856.73,0.73746539]
[1766173380721,0.20293557,858.13,856.74,0.73746539]
[1766173380921,0.20293557,858.13,856.75,0.73746539]
[1766173381120,0.20293557,858.13,856.76,0.73746539]
[1766173381417,0.20293557,858.13,856.77,0.73746539]
[1766173381621,0.20293557,858.13,856.78,0.73746539]
[1766173381821,0.20293557,858.13,856.79,0.73746539]
[1766173382020,0.20293557,858.13,856.8,0.73746539]
[1766173382221,0.20293557,858.13,856.53,0.85705536]
[1766173382424,0.20293557,858.13,856.54,0.73648048]
[1766173382625,0.20293557,858.13,856.55,0.73648048]
[1766173382824,0.20293557,858.13,856.56,0.73648048]
[1766173383124,0.20293557,858.13,856.57,0.73648048]
[1766173383325,0.20293557,858.13,856.58,0.73648048]
[1766173383521,0.20293557,858.13,856.59,0.73648048]
[1766173383724,0.20293557,858.13,856.52,0.85705536]
[1766173383725,0.20293557,858.13,856.6,0.73648048]
[1766173383921,0.20293557,858.13,856.61,0.73648048]
[1766173384125,0.20293557,858.13,856.62,0.73648048]
[1766173384324,0.20293557,858.13,856.63,0.73648048]
[1766173384621,0.20293557,858.13,856.64,0.73648048]
[1766173384826,0.20293557,858.13,856.65,0.73648048]
[1766173385025,0.20293557,858.13,856.66,0.73648048]
[1766173385227,0.20293557,858.13,856.67,0.73648048]
[1766173385427,0.20293557,858.13,856.68,0.73648048]
[1766173385723,0.20293557,858.13,856.69,0.73648048]
[1766173385924,0.20293557,858.13,856.7,0.73648048]
[1766173386121,0.20293557,858.13,856.71,0.73648048]
[1766173386327,0.20293557,858.13,856.72,0.73648048]
[1766173386526,0.20293557,858.13,856.73,0.73648048]
[1766173386726,0.20293557,858.13,856.74,0.73648048]
[1766173386924,0.20293557,858.13,856.75,0.73648048]
[1766173387128,0.20293557,858.13,856.76,0.73648048]
[1766173387328,0.20293557,858.13,856.77,0.73648048]
[1766173387525,0.20293557,858.13,856.78,0.73648048]
[1766173387827,0.20293557,858.13,856.79,0.73648048]
[1766173388030,0.20293557,858.13,856.8,0.73648048]
[1766173388227,0.20293557,858.13,856.52,0.85705536]
[1766173388428,0.20293557,858.13,856.53,1.59354108]
[1766173388726,0.20293557,858.13,856.54,0.73648572]
[1766173388925,0.20293557,858.13,856.55,0.73648572]
[1766173389126,0.20293557,858.13,856.56,0.73648572]
[1766173389326,0.20293557,858.13,856.57,0.73648572]
[1766173389526,0.20293557,858.13,856.58,0.73648572]
[1766173389726,0.20293557,858.13,856.59,0.73648572]
[1766173390029,0.20293557,858.13,856.6,0.73648572]
[1766173390228,0.20293557,858.13,856.61,0.73648572]
[1766173390425,0.20293557,858.13,856.62,0.73648572]
[1766173390623,0.20293557,858.13,856.63,0.73648572]
[1766173390829,0.20293557,858.13,856.64,0.73648572]
[1766173391030,0.20293557,858.13,856.65,0.73648572]
[1766173391227,0.20293557,858.13,856.66,0.73648572]
[1766173391425,0.20293557,858.13,856.67,0.73648572]
[1766173391627,0.20293557,858.13,856.68,0.73648572]
[1766173391826,0.20293557,858.13,856.69,0.73648572]
[1766173392031,0.20293557,858.13,856.7,0.73648572]
[1766173392330,0.20293557,858.13,856.71,0.73648572]
[1766173392630,0.20293557,858.13,856.72,0.73648572]
[1766173392826,0.20293557,858.13,856.73,0.73648572]
[1766173393025,0.20293557,858.13,856.53,0.85705536]
[1766173393026,0.20293557,858.13,856.74,0.73648572]
[1766173393225,0.20293557,858.13,856.75,0.73648572]
[1766173393428,0.20293557,858.13,856.76,0.73648572]
[1766173393627,0.20293557,858.13,856.77,0.73648572]
[1766173393929,0.20293557,858.13,856.78,0.73648572]
[1766173394127,0.20293557,858.13,856.79,0.73648572]
[1766173394326,0.20293557,858.13,856.8,0.73648572]
[1766173394526,0.20293557,858.13,856.81,0.73648572]
[1766173394730,0.20293557,858.13,856.53,0.85705536]
[1766173395026,0.20293557,858.13,856.54,0.73670872]
[1766173395326,0.20293557,858.13,856.55,0.73670872]
[1766173395527,0.20293557,858.13,856.56,0.73670872]
[1766173395726,0.20293557,858.13,856.57,0.73670872]
[1766173395929,0.20293557,858.13,856.58,0.73670872]
[1766173396128,0.20293557,858.13,856.59,0.73670872]
[1766173396327,0.20293557,858.13,856.6,0.73670872]
[1766173396527,0.20293557,858.13,856.61,0.73670872]
[1766173396727,0.20293557,858.13,856.62,0.73670872]
[1766173396930,0.20293557,858.13,856.63,0.73670872]
[1766173397131,0.20293557,858.13,856.64,0.73670872]
[1766173397331,0.20293557,858.13,856.65,0.73670872]
[1766173397529,0.20293557,858.13,856.66,0.73670872]
[1766173397728,0.20293557,858.13,856.67,0.73670872]
[1766173397932,0.20293557,858.13,856.68,0.73670872]
[1766173398227,0.20293557,858.13,856.69,0.73670872]
[1766173398431,0.20293557,858.13,856.7,0.73670872]
[1766173398629,0.20293557,858.13,856.71,0.73670872]
[1766173398832,0.20293557,858.13,856.72,0.73670872]
[1766173399029,0.20293557,858.13,856.73,0.73670872]
[1766173399334,0.20293557,858.13,856.74,0.73670872]
[1766173399634,0.20293557,858.13,856.75,0.73670872]
[1766173399834,0.20293557,858.13,856.76,0.73670872]
[1766173400032,0.20293557,858.13,856.49,0.85705536]
[1766173400230,0.20293557,858.13,856.5,0.73676812]
[1766173400534,0.20293557,858.13,856.51,0.73676812]
[1766173400736,0.20293557,858.13,856.52,0.73676812]
[1766173400935,0.20293557,858.13,856.53,0.73676812]
[1766173401134,0.20293557,858.13,856.54,0.73676812]
[1766173401439,0.20293557,858.13,856.55,0.73676812]
[1766173401732,0.20293557,858.13,856.56,0.73676812]
[1766173401933,0.20293557,858.13,856.57,0.73676812]
[1766173402138,0.20293557,858.13,856.58,0.73676812]
[1766173402336,0.20293557,858.13,856.59,0.73676812]
[1766173402637,0.20293557,858.13,856.6,0.73676812]
[1766173402835,0.20293557,858.13,856.61,0.73676812]
[1766173403033,0.20293557,858.13,856.62,0.73676812]
[1766173403238,0.20293557,858.13,856.63,0.73676812]
[1766173403436,0.20293557,858.13,856.64,0.73676812]
[1766173403634,0.20293557,858.13,856.65,0.73676812]
[1766173403934,0.20293557,858.13,856.66,0.73676812]
[1766173404137,0.20293557,858.13,856.67,0.73676812]
[1766173404336,0.20293557,858.13,856.68,0.73676812]
[1766173404539,0.20293557,858.13,856.69,0.73676812]